bitfinex/quotes_ETHUSD_20250406
["timestamp","ask_amount","ask_price","bid_price","bid_amount"]
[1743945183683,0.05,1779.9,1779.7,4.74462]
[1743945183886,0.29404956,1779.9,1779.7,4.74462]
[1743945184056,0.05,1779.9,1779.7,4.74462]
[1743945184358,0.24383171,1779.8,1779.7,4.74462]
[1743945184588,0.05,1779.9,1779.8,3.93302]
[1743945184992,0.2943133,1779.9,1779.8,3.93302]
[1743945185292,0.05,1779.9,1779.7,4.74462]
[1743945185483,4.73733,1779.8,1779.5,9.27667]
[1743945185664,0.8043,1779.8,1779.5,9.27667]
[1743945186074,0.24243649,1779.7,1779.5,9.27667]
[1743945186273,4.73737,1779.8,1779.5,5.343]
[1743945186465,0.24169095,1779.6,1779.5,5.343]
[1743945186665,0.8043,1779.8,1779.5,9.2766]
[1743945186864,0.24169095,1779.6,1779.5,9.2766]
[1743945187090,0.8043,1779.8,1779.5,9.2766]
[1743945187453,0.24243649,1779.7,1779.4,0.8115]
[1743945187655,8.10933649,1779.7,1779.4,6.1545]
[1743945187854,4.17588649,1779.7,1779.4,6.1545]
[1743945188288,8.10933649,1779.7,1779.4,6.1545]
[1743945188467,4.17588649,1779.7,1779.3,16.1977]
[1743945188654,4.17588649,1779.7,1779.5,0.6]
[1743945188859,7.69816,1779.6,1779.5,0.6]
[1743945189055,3.93373,1779.5,1779.2,5.343]
[1743945189366,0.23963468,1779.4,1779.2,5.343]
[1743945189565,0.23963468,1779.4,1779.1,10.85505]
[1743945189896,0.23963468,1779.4,1779.1,16.19805]
[1743945190903,0.23963468,1779.4,1779.1,10.09445]
[1743945191070,4.69894,1779.3,1779.0,40.448]
[1743945191408,3.93493,1779.0,1778.7,6.16]
[1743945191576,3.93493,1779.0,1778.6,3.93566]
[1743945191777,1.00125145,1778.9,1778.6,3.93566]
[1743945192302,0.7647,1778.9,1778.6,3.93566]
[1743945192678,0.7647,1778.9,1778.6,9.27966]
[1743945192870,0.23593721,1778.8,1778.6,9.27966]
[1743945193510,0.23593721,1778.8,1778.6,9.27958]
[1743945193703,0.23593721,1778.8,1778.7,3.99166455]
[1743945193909,0.7647,1778.9,1778.7,3.93545]
[1743945194110,0.7647,1778.9,1778.7,3.99166453]
[1743945194306,0.23591036,1778.8,1778.7,3.99166453]
[1743945194817,0.7647,1778.9,1778.7,3.99166453]
[1743945195109,0.7647,1778.9,1778.6,9.27958]
[1743945195277,0.23591036,1778.8,1778.6,9.27958]
[1743945195909,0.23591036,1778.8,1778.7,3.93545]
[1743945196109,0.23591036,1778.8,1778.7,3.99166464]
[1743945196312,0.7647,1778.9,1778.7,3.99166464]
[1743945196610,0.23973766,1778.8,1778.7,3.93545]
[1743945197907,0.23973766,1778.8,1778.6,9.27958]
[1743945198271,0.23973766,1778.8,1778.6,13.21511]
[1743945198609,0.23973766,1778.8,1778.6,9.27953]
[1743945199306,0.23973766,1778.8,1778.7,3.99166472]
[1743945199676,0.7647,1778.9,1778.7,4.59166472]
[1743945199896,0.7647,1778.9,1778.7,3.93545]
[1743945200090,0.23868195,1778.8,1778.7,3.93545]
[1743945200582,0.23868195,1778.8,1778.6,9.27953]
[1743945201093,0.23868195,1778.8,1778.6,13.21506]
[1743945201413,0.23868195,1778.8,1778.5,3.93585]
[1743945201712,0.23868195,1778.8,1778.6,5.345]
[1743945201913,4.17392195,1778.8,1778.4,10.85657]
[1743945202109,0.23868195,1778.8,1778.5,5.344]
[1743945202503,0.23868195,1778.8,1778.5,9.27989]
[1743945203280,0.23868195,1778.8,1778.5,3.93589]
[1743945203480,0.23868195,1778.8,1778.5,9.27989]
[1743945204800,4.69972,1778.9,1778.5,9.27989]
[1743945205217,0.23863103,1778.8,1778.5,9.27989]
[1743945205620,4.69972,1778.9,1778.5,9.27989]
[1743945205914,0.23801688,1778.7,1778.5,9.27989]
[1743945206102,3.93524,1778.8,1778.5,9.27989]
[1743945206301,0.23740266,1778.6,1778.5,9.27989]
[1743945206525,3.93524,1778.8,1778.5,9.27989]
[1743945207010,0.23801688,1778.7,1778.5,9.27989]
[1743945207620,0.23801688,1778.7,1778.5,5.344]
[1743945207796,0.7598,1778.6,1778.4,15.4411]
[1743945208111,0.7598,1778.6,1778.3,9.28132]
[1743945208313,0.23678837,1778.5,1778.2,51.34079]
[1743945208514,4.17271837,1778.5,1778.2,55.89149]
[1743945208682,3.93593,1778.5,1778.2,51.955]
[1743945208883,0.2321977,1778.4,1778.2,51.955]
[1743945209078,0.2321977,1778.4,1778.2,40.45]
[1743945209282,8.63134,1778.6,1778.2,44.38653]
[1743945209508,0.23171514,1778.3,1778.2,44.38653]
[1743945209707,4.69549,1778.6,1778.2,44.38653]
[1743945209910,0.23171514,1778.3,1778.2,44.38653]
[1743945210111,6.9359,1778.5,1778.2,40.45]
[1743945210314,4.72441,1778.4,1778.2,40.45]
[1743945210614,4.95673978,1778.4,1778.0,9.28199]
[1743945210803,3.93635,1778.3,1777.9,3.9372]
[1743945211003,4.95673978,1778.4,1778.0,3.93699]
[1743945211303,0.23108321,1778.2,1778.0,3.93699]
[1743945211504,3.0,1778.3,1778.0,3.93699]
[1743945211704,0.23044776,1778.1,1778.0,3.93699]
[1743945211882,3.0,1778.3,1778.0,3.93699]
[1743945212287,0.23106254,1778.2,1778.0,3.93699]
[1743945212718,0.23106254,1778.2,1778.1,4.7434185]
[1743945212911,0.23106254,1778.2,1778.1,4.68718]
[1743945213091,3.7882,1778.6,1778.3,3.93629]
[1743945213520,0.23289958,1778.5,1778.4,3.93612]
[1743945213686,0.23289958,1778.5,1778.3,3.93629]
[1743945214229,0.23289958,1778.5,1778.2,3.93653]
[1743945214744,3.93613,1778.4,1778.0,6.16]
[1743945214947,4.76792,1778.3,1778.0,5.345]
[1743945215095,8.9351211,1778.3,1778.0,5.345]
[1743945215298,4.9986011,1778.3,1777.9,9.28214]
[1743945215730,3.93667,1778.2,1777.9,5.345]
[1743945215939,8.9350311,1778.3,1777.9,9.28221]
[1743945216251,0.8315,1778.1,1777.8,3.93739]
[1743945216402,0.8315,1778.1,1777.8,9.28239]
[1743945216598,0.22559888,1778.0,1777.8,9.28239]
[1743945217850,4.16264888,1778.0,1777.7,6.9348]
[1743945218011,4.16264888,1778.0,1777.7,6.16]
[1743945218341,3.93705,1778.0,1777.7,5.346]
[1743945218541,0.22523147,1777.9,1777.7,5.346]
[1743945218998,4.16256147,1777.9,1777.5,45.18489]
[1743945219202,0.8315,1777.8,1777.6,5.346]
[1743945219598,0.22333034,1777.7,1777.6,5.346]
[1743945221456,0.8315,1777.8,1777.6,5.346]
[1743945221824,0.22240476,1777.7,1777.6,5.346]
[1743945222668,0.22240476,1777.7,1777.4,3.93827]
[1743945224175,0.22240476,1777.7,1777.5,3.93799]
[1743945224469,0.22240476,1777.7,1777.6,3.93789]
[1743945224962,0.22240476,1777.7,1777.5,3.93799]
[1743945227453,0.22240476,1777.7,1777.4,7.87651]
[1743945227653,0.22240476,1777.7,1777.4,3.9382]
[1743945228046,0.22240476,1777.7,1777.2,16.24502]
[1743945228355,0.22240476,1777.7,1777.5,3.9379]
[1743945231070,0.22240476,1777.7,1777.4,3.93832]
[1743945231242,0.22240476,1777.7,1777.4,7.8765]
[1743945231444,0.22240476,1777.7,1777.5,3.9381]
[1743945231978,0.22240476,1777.7,1777.4,3.93818]
[1743945233470,3.69135627,1777.7,1777.4,3.93818]
[1743945233773,3.69135627,1777.7,1777.4,7.87641]
[1743945233928,3.69135627,1777.7,1777.6,3.93789]
[1743945236365,0.22240476,1777.7,1777.6,3.93789]
[1743945236787,0.8295,1778.0,1777.8,3.93736]
[1743945236993,0.22424527,1777.9,1777.8,3.93736]
[1743945237288,0.8295,1778.2,1777.8,3.93736]
[1743945237578,3.8295,1778.2,1777.8,3.93736]
[1743945237785,0.2256112,1778.1,1777.8,3.93732]
[1743945238082,3.8295,1778.2,1777.9,3.93721]
[1743945238290,0.22499609,1778.0,1777.9,3.93721]
[1743945238452,3.8295,1778.2,1777.9,3.93721]
[1743945238652,0.22473172,1778.0,1777.8,3.93732]
[1743945238852,11.7028,1778.2,1777.8,3.93732]
[1743945239099,0.22385214,1777.9,1777.8,3.93732]
[1743945239285,11.7028,1778.2,1777.8,3.93732]
[1743945239481,0.22385214,1777.9,1777.8,3.93732]
[1743945239675,3.93685,1778.1,1777.7,4.76417]
[1743945239872,0.22398434,1777.9,1777.7,4.76417]
[1743945240056,3.93685,1778.1,1777.7,8.70173]
[1743945240256,0.22336907,1777.8,1777.7,8.70173]
[1743945240465,3.93685,1778.1,1777.7,8.70173]
[1743945240790,0.22433515,1778.0,1777.7,4.76406]
[1743945240998,0.22433515,1778.0,1777.6,9.28475]
[1743945241181,4.99094515,1778.0,1777.6,13.22256]
[1743945241771,4.99094515,1778.0,1777.6,9.28475]
[1743945242088,4.99094515,1778.0,1777.7,0.6]
[1743945242291,1.05383515,1778.0,1777.7,0.6]
[1743945242495,4.05383515,1778.0,1777.7,4.53756]
[1743945242662,7.99085515,1778.0,1777.7,4.53756]
[1743945242874,7.99085515,1778.0,1777.7,0.6]
[1743945244682,3.22433515,1778.0,1777.8,0.8265]
[1743945246218,7.16139515,1778.0,1777.7,0.6]
[1743945246391,7.16139515,1778.0,1777.6,14.04926]
[1743945247393,7.16139515,1778.0,1777.6,10.11138]
[1743945247596,3.22433515,1778.0,1777.7,3.93766]
[1743945247995,7.16135515,1778.0,1777.6,10.11129]
[1743945248624,11.09852515,1778.0,1777.6,10.11129]
[1743945248934,7.16135515,1778.0,1777.6,10.11129]
[1743945249634,4.73086,1777.9,1777.6,6.1735]
[1743945249989,0.22324579,1777.8,1777.6,6.1735]
[1743945250295,4.73086,1777.9,1777.6,6.1735]
[1743945250830,0.22324579,1777.8,1777.6,6.1735]
[1743945251006,0.22324579,1777.8,1777.6,5.347]
[1743945251208,4.73086,1777.9,1777.6,5.347]
[1743945251404,0.22324579,1777.8,1777.6,5.347]
[1743945251606,4.73086,1777.9,1777.6,5.347]
[1743945251803,0.22324579,1777.8,1777.6,5.347]
[1743945252033,4.73086,1777.9,1777.6,5.347]
[1743945252243,0.22263044,1777.7,1777.6,9.28487]
[1743945252391,6.93702,1778.0,1777.6,13.27898743]
[1743945252594,0.22399326,1777.9,1777.7,0.7823]
[1743945253636,0.22399326,1777.9,1777.7,4.71995]
[1743945253838,0.22399326,1777.9,1777.8,3.93745]
[1743945253991,0.22399326,1777.9,1777.8,4.74525]
[1743945254191,4.71782,1778.5,1778.0,4.74469]
[1743945254530,0.22891918,1778.4,1778.0,10.09069]
[1743945254730,0.22891918,1778.4,1778.1,3.93678]
[1743945255026,3.22891918,1778.4,1778.1,3.93678]
[1743945255228,0.22891918,1778.4,1778.1,3.93663]
[1743945255404,3.93569,1778.6,1778.2,4.74426]
[1743945255729,0.22954497,1778.5,1778.2,4.74426]
[1743945256103,4.94736497,1778.5,1778.1,3.93663]
[1743945256633,4.94736497,1778.5,1778.1,7.87333]
[1743945256802,4.94736497,1778.5,1778.1,3.93663]
[1743945256997,0.22954497,1778.5,1778.2,0.05622925]
[1743945257197,0.22954497,1778.5,1778.2,0.86402925]
[1743945257536,0.22954497,1778.5,1778.2,4.80050925]
[1743945257707,0.22954497,1778.5,1778.2,4.74428]
[1743945257924,0.22954497,1778.5,1778.2,4.80050921]
[1743945258231,0.22954497,1778.5,1778.2,4.7442]
[1743945258627,0.22954497,1778.5,1778.2,4.80042927]
[1743945258834,0.22954497,1778.5,1778.2,4.7442]
[1743945259034,0.22954497,1778.5,1778.3,3.93625]
[1743945259243,3.0,1778.6,1778.3,3.93625]
[1743945259413,0.22896611,1778.4,1778.3,7.87249]
[1743945259733,3.0,1778.6,1778.3,3.93624]
[1743945259921,0.23028744,1778.4,1778.3,3.93624]
[1743945260123,3.0,1778.6,1778.3,3.93624]
[1743945260335,0.23028744,1778.4,1778.3,3.93624]
[1743945260525,3.0,1778.6,1778.3,3.93624]
[1743945261034,0.23090212,1778.5,1778.3,3.93624]
[1743945263235,3.0,1778.6,1778.3,7.87245]
[1743945263410,0.23090212,1778.5,1778.4,3.93611]
[1743945263612,3.0,1778.6,1778.4,3.93611]
[1743945263807,3.7698,1778.8,1778.5,0.7769]
[1743945264134,3.93502,1778.9,1778.6,3.93566]
[1743945265462,7.87013,1778.9,1778.5,4.71276]
[1743945265637,3.93544,1778.8,1778.4,6.1219]
[1743945265811,4.70534,1778.7,1778.4,6.1219]
[1743945266947,4.70534,1778.7,1778.4,0.7769]
[1743945267253,4.70534,1778.7,1778.4,5.344]
[1743945268536,3.93578,1778.6,1778.2,4.7134]
[1743945268751,3.93591,1778.5,1778.2,5.344]
[1743945269112,4.75421,1778.5,1778.2,5.344]
[1743945270041,8.69027,1778.5,1778.2,5.344]
[1743945271051,3.93674,1778.2,1777.9,40.486]
[1743945271259,4.75504,1778.2,1777.9,40.486]
[1743945271960,4.75442,1778.4,1777.9,40.486]
[1743945272249,6.9359,1778.5,1778.1,0.751]
[1743945272448,6.9359,1778.5,1778.1,4.68776]
[1743945272653,6.9359,1778.5,1778.1,10.03176]
[1743945275169,6.9359,1778.5,1778.1,5.344]
[1743945275170,3.93648,1778.3,1778.1,5.344]
[1743945275330,4.71568,1778.3,1778.0,5.344]
[1743945276031,8.6522,1778.3,1777.9,3.93707]
[1743945276364,8.6522,1778.3,1777.8,10.11094]
[1743945276365,3.93657,1778.2,1777.8,10.11094]
[1743945276572,7.87332,1778.2,1777.8,10.11094]
[1743945276789,3.93657,1778.2,1777.8,10.11094]
[1743945277296,4.16526995,1778.1,1777.9,0.6]
[1743945277449,0.22848995,1778.1,1777.9,0.6]
[1743945277646,3.9369,1778.1,1777.9,0.6]
[1743945277968,3.93657,1778.2,1777.9,0.6]
[1743945277969,0.227875,1778.0,1777.9,0.6]
[1743945278388,3.93657,1778.2,1777.9,0.6]
[1743945278889,0.22848995,1778.1,1777.9,0.6]
[1743945279288,3.93657,1778.2,1777.9,0.6]
[1743945279462,0.227875,1778.0,1777.9,0.6]
[1743945279672,3.93657,1778.2,1777.8,10.11092]
[1743945279854,0.227875,1778.0,1777.8,10.11092]
[1743945280056,3.93657,1778.2,1777.8,10.11092]
[1743945280255,0.22848995,1778.1,1777.8,10.11092]
[1743945280447,3.93678,1778.1,1777.7,3.93753]
[1743945280664,0.227875,1778.0,1777.7,9.28153]
[1743945280881,0.227875,1778.0,1777.8,3.93744]
[1743945281083,3.93657,1778.2,1777.8,3.93744]
[1743945281284,3.93679,1778.1,1777.7,9.28153]
[1743945281485,4.16527995,1778.1,1777.7,9.28153]
[1743945281655,0.22848995,1778.1,1777.7,9.33776456]
[1743945281862,3.93662,1778.2,1777.8,3.93745]
[1743945282284,0.22845129,1778.1,1777.8,3.93745]
[1743945282685,3.93662,1778.2,1777.8,3.93745]
[1743945282873,0.22783633,1778.0,1777.8,3.93745]
[1743945283075,4.73257,1778.1,1777.7,9.28152]
[1743945283287,0.22722131,1777.9,1777.7,9.28152]
[1743945283463,4.73257,1778.1,1777.7,9.33776457]
[1743945283664,0.22660622,1777.8,1777.7,9.28152]
[1743945283867,4.73257,1778.1,1777.7,9.33776472]
[1743945284261,0.22783633,1778.0,1777.7,9.33776472]
[1743945284668,4.16491633,1778.0,1777.6,4.76737]
[1743945284892,4.16491633,1778.0,1777.7,5.344]
[1743945286201,0.22783633,1778.0,1777.7,9.33774462]
[1743945286499,0.22783633,1778.0,1777.7,13.27533462]
[1743945286652,0.22783633,1778.0,1777.8,3.93743]
[1743945287258,0.22783633,1778.0,1777.7,9.2815]
[1743945287453,0.22783633,1778.0,1777.7,9.33774462]
[1743945288297,0.22783633,1778.0,1777.8,3.93741]
[1743945288472,8.13344481,1778.2,1777.8,3.93741]
[1743945288675,0.22732999,1777.9,1777.8,3.93741]
[1743945288992,12.07015481,1778.2,1777.7,9.2815]
[1743945288993,3.93679,1778.1,1777.7,13.21902]
[1743945289167,0.22732999,1777.9,1777.7,13.21902]
[1743945289360,3.93679,1778.1,1777.7,13.21902]
[1743945289555,0.22697917,1777.8,1777.7,13.21902]
[1743945289758,3.93679,1778.1,1777.7,13.21902]
[1743945289959,3.93679,1778.1,1777.7,9.2815]
[1743945290185,0.22820925,1778.0,1777.7,9.33774462]
[1743945290385,0.22820925,1778.0,1777.7,13.27527462]
[1743945290580,0.22820925,1778.0,1777.7,13.21903]
[1743945290861,0.22820925,1778.0,1777.8,3.93742]
[1743945291063,0.22820925,1778.0,1777.8,3.93736]
[1743945291403,7.70863,1778.2,1777.8,3.93736]
[1743945291565,0.22746212,1777.9,1777.7,9.28164]
[1743945291896,3.9369,1778.1,1777.7,9.28164]
[1743945292098,3.93711,1778.0,1777.7,5.344]
[1743945292269,4.988155,1778.0,1777.7,5.344]
[1743945292474,4.988155,1778.0,1777.6,0.8295]
[1743945292475,3.93724,1777.9,1777.6,0.8295]
[1743945292669,4.16438959,1777.9,1777.6,6.1735]
[1743945292875,4.16438959,1777.9,1777.5,3.93805]
[1743945293095,8.10177959,1777.9,1777.5,9.28205]
[1743945293801,3.9375,1777.8,1777.5,9.28205]
[1743945294171,0.22591934,1777.7,1777.5,9.28205]
[1743945294366,3.9375,1777.8,1777.5,9.28205]
[1743945294561,3.93724,1777.9,1777.5,13.22005]
[1743945294761,0.22591934,1777.7,1777.6,3.93789]
[1743945294998,3.0,1778.0,1777.7,3.93764]
[1743945295507,3.0,1778.0,1777.8,4.72375]
[1743945296501,3.0,1778.0,1777.9,3.93722]
[1743945297238,3.0,1778.0,1777.9,9.28122]
[1743945297518,3.0,1778.0,1777.9,5.344]
[1743945298822,6.937,1778.0,1777.9,5.344]
[1743945299521,3.0,1778.0,1777.9,5.344]
[1743945301800,6.937,1778.0,1777.9,5.344]
[1743945303422,3.0,1778.0,1777.9,5.344]
[1743945306832,3.93734,1777.9,1777.5,3.93805]
[1743945307033,0.22719385,1777.8,1777.5,0.7826]
[1743945307219,8.63336,1777.7,1777.3,45.20897]
[1743945307420,4.16388491,1777.6,1777.3,41.2706]
[1743945307625,3.93815,1777.5,1777.3,45.831]
[1743945307935,0.22005327,1777.4,1777.3,45.831]
[1743945308437,0.22005327,1777.4,1777.3,40.488]
[1743945308737,7.87601,1777.6,1777.3,40.488]
[1743945308903,4.15838327,1777.4,1777.3,40.488]
[1743945309105,7.87645,1777.5,1777.3,40.488]
[1743945309301,4.93664327,1777.4,1777.1,5.393]
[1743945310348,4.93664327,1777.4,1777.1,0.05]
[1743945310643,3.93868,1777.3,1777.1,0.05]
[1743945310940,0.21432675,1777.2,1777.1,0.05]
[1743945311453,8.13218068,1777.2,1777.1,0.05]
[1743945311642,8.34686586,1777.2,1777.1,0.05]
[1743945313533,4.40808586,1777.2,1777.1,0.05]
[1743945313737,3.99278518,1777.2,1777.1,0.05]
[1743945313940,0.21468518,1777.2,1777.1,3.989]
[1743945314257,0.8002,1777.6,1777.2,3.93856]
[1743945314475,0.21617037,1777.5,1777.2,7.87722]
[1743945314622,0.21617037,1777.5,1777.3,3.93851]
[1743945315479,0.8002,1777.9,1777.5,3.93797]
[1743945315624,0.21828114,1777.8,1777.5,3.93797]
[1743945315820,7.73752,1777.9,1777.5,3.93797]
[1743945316024,5.904973,1777.9,1777.5,3.93797]
[1743945316225,0.21950343,1777.8,1777.5,3.93797]
[1743945316469,4.967653,1777.9,1777.5,3.93797]
[1743945316668,0.21937124,1777.8,1777.5,3.93797]
[1743945316877,8.904933,1777.9,1777.5,3.93797]
[1743945317178,0.21910685,1777.8,1777.5,3.93797]
[1743945317555,8.904933,1777.9,1777.5,3.93806]
[1743945318162,0.21923905,1777.8,1777.5,3.93806]
[1743945318462,9.32927254,1777.9,1777.5,3.93806]
[1743945318664,0.21923905,1777.8,1777.5,3.93806]
[1743945318961,9.32927254,1777.9,1777.5,3.93806]
[1743945319163,0.21862374,1777.7,1777.5,3.93806]
[1743945319460,0.21800837,1777.6,1777.5,3.93806]
[1743945319662,8.16181954,1777.9,1777.5,3.93806]
[1743945319830,0.21923905,1777.8,1777.5,3.93806]
[1743945320164,8.16181954,1777.9,1777.5,3.93806]
[1743945320363,0.21862374,1777.7,1777.5,3.93806]
[1743945320570,8.16181954,1777.9,1777.5,3.93806]
[1743945320757,0.21800837,1777.6,1777.5,3.93806]
[1743945320940,8.16181954,1777.9,1777.5,3.93806]
[1743945321135,0.21798012,1777.6,1777.4,9.28218]
[1743945321335,3.93754,1777.8,1777.4,9.28218]
[1743945321553,0.21710023,1777.5,1777.4,9.28218]
[1743945321901,0.21643907,1777.5,1777.4,9.28218]
[1743945322260,3.93754,1777.8,1777.4,5.344]
[1743945322464,3.0,1777.6,1777.3,4.75884]
[1743945322665,0.21657131,1777.5,1777.3,4.75884]
[1743945322866,4.15469131,1777.5,1777.2,5.344]
[1743945323171,4.15469131,1777.5,1777.1,9.33287]
[1743945323373,3.0,1777.4,1777.1,5.394]
[1743945323699,0.21428201,1777.3,1777.1,5.394]
[1743945323921,0.99198201,1777.3,1777.1,0.05]
[1743945324079,4.71632,1777.3,1777.1,0.05]
[1743945324279,0.21314124,1777.2,1777.1,0.05]
[1743945325393,7.15192124,1777.2,1777.1,0.05]
[1743945330619,7.96902124,1777.2,1777.1,0.05]
[1743945331112,8.51902124,1777.2,1777.1,0.05]
[1743945332500,14.53902124,1777.2,1777.1,0.05]
[1743945332700,16.42868191,1777.2,1777.1,0.05]
[1743945339939,10.17192124,1777.2,1777.1,0.05]
[1743945340399,13.17192124,1777.2,1777.1,0.05]
[1743945341123,6.23314124,1777.2,1777.1,0.05]
[1743945341315,0.21314124,1777.2,1777.1,0.05]
[1743945341517,3.0,1777.3,1777.1,0.05]
[1743945341733,0.21284813,1777.2,1777.1,0.05]
[1743945341935,0.21284813,1777.2,1777.1,9.334]
[1743945342237,3.0,1777.6,1777.4,0.832]
[1743945342404,6.93789,1777.6,1777.4,0.832]
[1743945343236,3.0,1777.6,1777.4,0.832]
[1743945343421,6.93806,1777.6,1777.4,0.832]
[1743945343625,9.95768,1777.7,1777.4,0.832]
[1743945344434,3.0,1777.5,1777.4,0.832]
[1743945345309,6.93811,1777.5,1777.2,0.832]
[1743945345506,3.0,1777.5,1777.2,4.77077]
[1743945345835,3.93821,1777.5,1777.2,0.832]
[1743945346636,3.93864,1777.3,1777.1,0.05]
[1743945347547,6.93864,1777.3,1777.1,0.05]
[1743945348157,3.0,1777.3,1777.1,0.05]
[1743945348449,3.0,1777.2,1777.1,0.05]
[1743945348647,6.93813,1777.5,1777.1,0.05]
[1743945348840,6.93813,1777.5,1777.1,3.98891]
[1743945349043,3.0,1777.5,1777.2,3.93867]
[1743945349348,3.0,1777.5,1777.3,0.7752]
[1743945350645,3.0,1777.5,1777.1,3.98891]
[1743945350646,6.93824,1777.5,1777.2,0.7752]
[1743945350949,3.93833,1777.4,1777.2,0.7752]
[1743945351114,6.93824,1777.5,1777.2,0.7752]
[1743945351463,3.93839,1777.4,1777.2,0.7752]
[1743945352168,4.1532673,1777.3,1777.2,0.7752]
[1743945352371,4.1532673,1777.3,1777.1,0.05]
[1743945352576,3.93878,1777.2,1777.1,0.05]
[1743945352745,0.21410157,1777.2,1777.1,0.05]
[1743945352947,3.21410157,1777.2,1777.1,0.05]
[1743945353756,7.15288157,1777.2,1777.1,0.05]
[1743945356982,3.21410157,1777.2,1777.1,0.05]
[1743945358279,7.15288157,1777.2,1777.1,0.05]
[1743945358576,8.26202473,1777.2,1777.1,0.05]
[1743945359877,9.57072473,1777.2,1777.1,0.05]
[1743945362297,15.59072473,1777.2,1777.1,1e-05]
[1743945364579,20.38472473,1777.2,1777.1,1e-05]
[1743945364951,20.93472473,1777.2,1777.1,1e-05]
[1743945368111,20.38572473,1777.2,1777.1,1e-05]
[1743945368674,17.38572473,1777.2,1777.1,1e-05]
[1743945368900,17.93572473,1777.2,1777.1,1e-05]
[1743945369105,20.93572473,1777.2,1777.1,1e-05]
[1743945371788,26.86172473,1777.2,1777.1,1e-05]
[1743945372211,26.96172259,1777.2,1777.1,1e-05]
[1743945372628,26.96172259,1777.2,1776.1,0.8351]
[1743945372629,3.94099,1776.2,1776.1,0.8351]
[1743945372939,6.94099,1776.2,1776.1,0.8351]
[1743945373125,6.94099,1776.2,1776.1,0.05]
[1743945373126,8.43863893,1776.2,1776.1,0.05]
[1743945374534,7.13703893,1776.2,1776.1,0.05]
[1743945375602,3.19604893,1776.2,1776.1,0.05]
[1743945375800,0.19604893,1776.2,1776.1,0.8205]
[1743945376409,3.0,1776.2,1776.1,0.8205]
[1743945376609,3.19319485,1776.2,1776.1,0.8205]
[1743945377335,0.19319485,1776.2,1776.1,0.8205]
[1743945378353,3.0,1776.4,1776.1,4.76171]
[1743945378554,3.94012,1776.6,1776.3,0.7975]
[1743945378702,3.0,1776.5,1776.3,0.7975]
[1743945379018,6.57,1776.7,1776.3,0.7975]
[1743945379211,3.94055,1776.4,1776.3,0.7975]
[1743945379412,3.94038,1776.5,1776.3,0.7975]
[1743945379712,6.94012,1776.6,1776.3,0.7975]
[1743945380908,3.94055,1776.4,1776.3,0.7975]
[1743945381436,3.94099,1776.2,1776.1,0.8475]
[1743945381635,6.94099,1776.2,1776.1,0.8475]
[1743945381841,6.94099,1776.2,1776.1,0.05]
[1743945382259,7.13355221,1776.2,1776.1,0.05]
[1743945382826,7.55213622,1776.2,1776.1,0.05]
[1743945383025,8.78059484,1776.2,1776.1,0.05]
[1743945384053,9.33059484,1776.2,1776.1,0.05]
[1743945385117,8.78059484,1776.2,1776.1,0.05]
[1743945387962,9.33059484,1776.2,1776.1,0.05]
[1743945388165,10.12219484,1776.2,1776.1,0.05]
[1743945389171,10.12219484,1776.2,1776.1,1e-05]
[1743945389532,16.14219484,1776.2,1776.1,1e-05]
[1743945390327,3.94277,1775.4,1775.3,0.804]
[1743945390548,4.13121609,1775.4,1775.3,0.804]
[1743945391273,0.18844609,1775.4,1775.3,0.804]
[1743945391451,4.13121609,1775.4,1775.3,0.804]
[1743945391774,0.18844609,1775.4,1775.3,0.804]
[1743945393370,0.18885296,1775.4,1775.3,0.804]
[1743945393552,6.94233,1775.6,1775.3,0.804]
[1743945393731,0.18973263,1775.5,1775.3,0.804]
[1743945393931,4.13230263,1775.5,1775.3,0.804]
[1743945394870,8.07501263,1775.5,1775.3,0.804]
[1743945395339,3.94277,1775.4,1775.3,0.804]
[1743945395538,4.13188569,1775.4,1775.3,0.804]
[1743945395735,3.94304,1775.3,1775.1,0.8457]
[1743945395938,0.1878816,1775.2,1775.1,0.8457]
[1743945396377,4.1310916,1775.2,1775.1,0.05]
[1743945396545,14.62301059,1775.2,1775.1,0.05]
[1743945396752,14.20378376,1775.2,1775.1,0.05]
[1743945397073,20.22378376,1775.2,1775.1,0.05]
[1743945397392,0.5021,1773.9,1773.1,0.8457]
[1743945397891,0.17860509,1773.8,1773.5,4.74263]
[1743945398051,4.12494509,1773.8,1773.5,0.7957]
[1743945398253,0.17860509,1773.8,1773.5,4.74268]
[1743945398451,3.94607,1774.0,1773.5,4.74268]
[1743945398452,3.94547,1774.2,1773.6,3.94675]
[1743945398654,6.94541,1774.3,1773.8,3.94619]
[1743945398862,6.94541,1774.3,1773.9,0.7957]
[1743945399065,3.0,1774.1,1773.9,0.7957]
[1743945399259,3.94562,1774.2,1773.7,3.9465]
[1743945399560,6.94544,1774.2,1773.7,3.9465]
[1743945399764,3.94591,1774.0,1773.5,4.74254]
[1743945399958,3.94591,1774.0,1773.5,10.38854]
[1743945400359,4.26158274,1774.2,1773.5,6.4417]
[1743945400564,3.0,1774.2,1773.9,3.94599]
[1743945400776,6.02,1774.4,1774.0,0.7957]
[1743945400979,6.02,1774.4,1774.0,4.74147]
[1743945401184,6.02,1774.4,1774.0,4.74146]
[1743945401501,9.96428,1774.8,1774.2,3.94522]
[1743945401647,6.02,1774.8,1774.5,0.7957]
[1743945401952,3.0,1774.7,1774.5,0.7957]
[1743945402152,6.94433,1774.7,1774.5,0.7957]
[1743945402348,3.94433,1774.7,1774.5,0.7957]
[1743945402990,9.96412,1774.8,1774.5,0.7957]
[1743945403196,3.0,1774.7,1774.5,0.7957]